Cogmind - Beta 14 @@@ ROGUE MODE // 2025.03.30 @ 01:23:53 Player: IA-Sg3M Result: Destroyed by P9-27E(R) with Subdweller Laser Performance ------------- Evolutions (0) 0 Regions Visited (2) 400 Robots Destroyed (24) 120 Value Destroyed (600) 600 Prototype IDs (0) 0 Alien Tech Used (0) 0 Bonus (0) 0 TOTAL SCORE: 1120 Bonus ------- None Cogmind --------- Core Integrity 0/250 Matter 201/300 Energy 250/250 System Corruption 2% Temperature Cool (6) Movement Core (500) Ox9 Location -10/Subcaves Parts ------- > --- POWER (1) -------- Ion Engine > --- PROPULSION (2) --- (None) > --- UTILITY (2) ------ Large Storage Unit > --- WEAPON (2) ------- Assault Rifle Assault Rifle > --- INVENTORY (15) --- Ion Engine Wheel Wheel Wheel Wheel Heat Sink Heat Sink Seismic Detector Subdweller Laser Grenade Launcher Grenade Launcher Grenade Launcher Peak State ------------ > --- POWER ------------ Ion Engine > --- PROPULSION ------- Light Treads Light Treads > --- UTILITY ---------- Large Storage Unit Light Armor Plating > --- WEAPON ----------- Subdweller Laser Assault Rifle > --- INVENTORY -------- Ion Engine Wheel Wheel Wheel Wheel Wheel Wheel Wheel Heat Sink Heat Sink Seismic Detector Light Armor Plating Grenade Launcher Grenade Launcher Grenade Launcher [Rating: 9] Favorites ----------- Power Ion Engine Engine Ion Engine Propulsion Light Treads Treads Light Treads Leg Aluminum Leg Utility Large Storage Unit Storage Large Storage Unit Protection Light Armor Plating Weapon Assault Rifle Energy Gun Small Laser Ballistic Gun Assault Rifle Build | -11 -10 -10 ------- Run | Yrd Mat Sub Slots Evolved . | . . . Power . | . . . Propulsion . | . . . Utility . | . . . Weapon . | . . . Parts Attached 24 | 11 10 3 Power 2 | 1 1 . Engine 2 | 1 1 . Core . | . . . Reactor . | . . . Propulsion 8 | 6 1 1 Treads 4 | 2 1 1 Leg 4 | 4 . . Wheel . | . . . Hover . | . . . Flight . | . . . Utility 5 | 1 3 1 Device . | . . . Storage 2 | 1 1 . Processor . | . . . Hackware . | . . . Protection 3 | . 2 1 Artifact . | . . . Weapon 9 | 3 5 1 Energy Gun 2 | 1 1 . Energy Cannon . | . . . Ballistic Gun 7 | 2 4 1 Ballistic Cannon . | . . . Launcher . | . . . Special Weapon . | . . . Impact Weapon . | . . . Slashing Weapon . | . . . Piercing Weapon . | . . . Special Melee Weapon . | . . . Unidentified Prototypes . | . . . Parts Lost 7 | . 1 6 Power . | . . . Propulsion 3 | . . 3 Utility 2 | . . 2 Weapon 2 | . 1 1 Highest Loss Streak 3 | . 1 3 To Critical Strikes 1 | . 1 . Average Slot Usage (%) 98 | . 99 97 Engine 14 | . 14 14 Treads 27 | . 28 26 Storage 15 | . 16 14 Protection 11 | . 11 12 Energy Gun 8 | . 10 . Ballistic Gun 19 | . 17 28 Peak Build Rating 9 | 6 9 8 Average Rating 7 | 4 7 7 On Entrance 4 | . 6 8 Naked Turns . | . . . Heaviest Build 34 | 10 34 32 Greatest Support 40 | 40 40 40 Greatest Overweight (x) 2 | 2 . . Average Overweight (x) . | . . . Largest Inventory Capacity 15 | 8 15 15 Average Capacity 14 | 7 14 15 Most Carried 15 | 6 15 15 Average Carried 11 | 3 12 13 Final Capacity 15 | 8 15 15 Final Carried 15 | 6 15 12 Class Distribution -------------------- 100% | Mutant Dominant Class ---------------- Mutant | -10/Materials Mutant | -10/Subcaves Resources | -11 -10 -10 ----------- Run | Yrd Mat Sub Matter Collected 792 | 208 446 138 Remotely . | . . . Salvage Created 709 | . 519 190 Parts 42 | . 34 8 Haulers Intercepted . | . . . Recyclers Shooed 1 | . 1 . Parts Field Recycled . | . . . Retrieved Matter . | . . . Parts Self-Destructed 5 | . . 5 Prevented . | . . . Kills | -11 -10 -10 ------- Run | Yrd Mat Sub Combat Hostiles Destroyed 19 | . 13 6 Guns 19 | . 13 6 Classes Destroyed 6 | . 4 2 Builder 1 | . 1 . Turret 2 | . . 2 Watcher 2 | . 2 . Swarmer 7 | . 3 4 Grunt 10 | . 10 . Subdweller 2 | . . 2 Best Kill Streak 4 | . 3 4 Combat Bots Only 4 | . 3 4 Max Kills in Single Turn 1 | . 1 1 Gunslinging . | . . . Exploded . | . . . Melee . | . . . Uniques/NPCs Destroyed . | . . . Combat | -11 -10 -10 -------- Run | Yrd Mat Sub Hostile Shots Fired 203 | . 78 125 Missed 57 | . 21 36 Damage Taken 1499 | . 616 883 Core 260 | . 122 138 Absorbed by Shields . | . . . Core Remaining (%) 100 | 100 . . Volleys Fired 114 | . 76 38 Largest 2 | . 2 2 Hottest 80 | . 80 40 Shots Fired 223 | . 148 75 Gun 223 | . 148 75 Cannon . | . . . Launcher . | . . . Special . | . . . Kinetic 158 | . 83 75 Thermal 65 | . 65 . Explosive . | . . . Electromagnetic . | . . . Robot Hit Streak 19 | . 7 19 Robot Miss Streak 5 | . 5 3 Penetration Max . | . . . Secondary Targets 5 | . 2 3 Max Gunslinging Chain 1 | . 1 1 Shots Hit Robots 138 | . 84 54 Core Hits 48 | . 31 17 Critical Kills . | . . . Critical Parts Destroyed 3 | . 2 1 Critical Strikes 4 | . 2 2 Destroy 4 | . 2 2 Melee Attacks . | . . . Impact . | . . . Slashing . | . . . Piercing . | . . . Sneak Attacks . | . . . Combat Hostiles . | . . . Follow-up Attacks . | . . . Damage Inflicted 1720 | . 1034 686 Guns 1716 | . 1030 686 Cannons . | . . . Explosions . | . . . Melee . | . . . Ramming 4 | . 4 . Kinetic 1241 | . 555 686 Thermal 475 | . 475 . Explosive . | . . . Electromagnetic . | . . . Impact . | . . . Slashing . | . . . Piercing . | . . . Highest Corruption 2 | . 2 2 Average Corruption 2 | . 2 2 Corruption Purged . | . . . Corruption Blocked . | . . . Effects 18 | . 15 3 Message Errors 3 | . 3 . Matter Fused 5 | . 4 1 Heat Flow Errors 2 | . 2 . Energy Discharges 3 | . 2 1 Data Loss (minor) 1 | . 1 . Data Loss (major) 1 | . . 1 Misfires 2 | . 2 . Weapon Failures 1 | . 1 . Overload Shots . | . . . Overflow Damage . | . . . Projectiles . | . . . Explosions . | . . . Melee . | . . . Knockbacks . | . . . Impact . | . . . Kinetic . | . . . Secondary . | . . . Self-Inflicted Damage . | . . . Shots . | . . . Rammed 2 | . 2 . Targets Rammed 2 | . 2 . Kicked . | . . . Crushed . | . . . Highest Temperature 249 | . 249 9 Average Temperature 52 | . 52 5 Received Heat Transfer 678 | . 276 402 Effects 1 | . 1 . Energy Bleed 1 | . 1 . Siege Activations . | . . . Robots Corrupted . | . . . Combat Hostiles . | . . . Parts Fried . | . . . Impact Corruptions . | . . . Robots Melted . | . . . Combat Hostiles . | . . . Parts Melted . | . . . Heat Transferred 925 | . 925 . Parts Sabotaged . | . . . Parts Stolen . | . . . Parts Stripped . | . . . Power Chain Reactions . | . . . Alert | -11 -10 -10 ------- Run | Yrd Mat Sub Peak Influence 253 | . 253 . Initial . | . . . Average 95 | . 104 . Maximum Alert Level 1 | . 1 . Low Security (%) 87 | 100 86 . Level 1 12 | . 13 . Level 2 . | . . . Level 3 . | . . . Level 4 . | . . . Level 5 . | . . . High Security . | . . . Max Security . | . . . Squads Dispatched 5 | . 5 . Investigation 3 | . 3 . Extermination . | . . . Reinforcement 2 | . 2 . Assault . | . . . Garrison . | . . . Intercept . | . . . Searches Triggered . | . . . Construction Impeded . | . . . Haulers Reinforced . | . . . Active Scanning Responses . | . . . Cargo Convoy Interrupts . | . . . Stealth | -11 -10 -10 --------- Run | Yrd Mat Sub Distress Signals 2 | . 2 . Communications Jammed . | . . . Distress Signals . | . . . Times Spotted 41 | . 30 11 Peak Tracking Total 5 | . 4 5 Tactical Retreats 9 | . 7 2 Traps | -11 -10 -10 ------- Run | Yrd Mat Sub Traps Triggered 2 | . 2 . Indirectly . | . . . Trap Hack Attempts . | . . . Triggered . | . . . Disarmed . | . . . Reprogrammed . | . . . Reused . | . . . Traps Extracted . | . . . Installed . | . . . Triggered 2 | . . 2 Machines | -11 -10 -10 ---------- Run | Yrd Mat Sub Machines Disabled . | . . . Max in Single Turn . | . . . Machines Repaired . | . . . Machines Dismantled . | . . . Machines Sabotaged . | . . . Overloaded Fab Kills . | . . . Hacking | -11 -10 -10 --------- Run | Yrd Mat Sub Machines Accessed 7 | . 7 . Terminals 5 | . 5 . Fabricators . | . . . Repair Stations . | . . . Recycling Units 2 | . 2 . Scanalyzers . | . . . Garrison Access . | . . . Total Hacks 22 | . 22 . Successful 9 | . 9 . Failed 13 | . 13 . Catastrophic 1 | . 1 . Database Lockouts . | . . . Manual 10 | . 10 . Terminals 15 | . 15 . Fabricators . | . . . Repair Stations . | . . . Recycling Units 7 | . 7 . Scanalyzers . | . . . Garrison Access . | . . . Terminal Hacks 5 | . 5 . Emergency Access Points 2 | . 2 . Hauler Manifests 1 | . 1 . Registered Components 1 | . 1 . Zone Layout 1 | . 1 . Fabricator Hacks . | . . . Repair Station Hacks . | . . . Recycling Unit Hacks 2 | . 2 . Report Inventory 2 | . 2 . Scanalyzer . | . . . Garrison Access Hacks . | . . . Unauthorized Hacks 2 | . 2 . Terminals . | . . . Fabricators . | . . . Repair Stations . | . . . Recycling Units 2 | . 2 . Tunnel 2 | . 2 . Scanalyzers . | . . . Garrison Access . | . . . Data Cores Recovered . | . . . Used . | . . . Hacking Detections 6 | . 6 . Full Trace Events . | . . . Feedback Events . | . . . Feedback Blocked . | . . . Robot Schematics Acquired . | . . . Robots Built . | . . . Authchips . | . . . Time . | . . . Total Robot Build Rating . | . . . Part Schematics Acquired . | . . . Parts Built . | . . . Authchips . | . . . Time . | . . . Total Part Build Rating . | . . . Parts Repaired . | . . . Time . | . . . Parts Recycled . | . . . Recycled Matter . | . . . Retrieved Matter . | . . . Retrieved Components . | . . . Parts Scanalyzed . | . . . Part Schematics Acquired . | . . . Parts Damaged . | . . . Bothacking | -11 -10 -10 ------------ Run | Yrd Mat Sub Used RIF Installer . | . . . Robots Hacked . | . . . Non-combat . | . . . Combat . | . . . Robot Hacks Applied . | . . . Relay Couplers Released . | . . . Fabnet Peak Effective % . | . . . Robots Rewired . | . . . Allies Hacked . | . . . Hacks Repelled . | . . . Allies | -11 -10 -10 -------- Run | Yrd Mat Sub Total Allies . | . . . Largest Group . | . . . Highest-Rated Group . | . . . Highest-Rated Ally . | . . . Total Orders . | . . . Ally Attacks . | . . . Total Damage . | . . . Kills . | . . . Allies Corrupted . | . . . Allies Melted . | . . . Intel | -11 -10 -10 ------- Run | Yrd Mat Sub Robot Analysis Total . | . . . Derelict Logs Recovered . | . . . Drone Launches . | . . . Drone Recoveries . | . . . Exploration | -11 -10 -10 ------------- Run | Yrd Mat Sub Turns Passed 2103 | 146 1620 337 Spaces Moved 1066 | 87 842 137 Core 9 | 9 . . Treads 1039 | 60 842 137 Legs 18 | 18 . . Wheels . | . . . Hover . | . . . Flight . | . . . Fastest Speed 50 | 50 160 160 Average Speed 158 | 144 160 160 Slowest Speed 160 | 160 160 160 Overloaded Moves . | . . . Propulsion Burnouts . | . . . Robots Hopped . | . . . Cave-ins Triggered . | . . . Exploration Rate (%) 36 | 5 94 10 Regions Visited 2 Branch Regions 1 Pre-discovered Areas 2 | . 2 . Known Exits Taken . | . . . Unknown Exits Taken 2 | 1 1 . Scrap Searched . | . . . Spaces Dug . | . . . Terrain Destroyed . | . . . Melee . | . . . Projectile . | . . . AOE . | . . . Terrain Rammed . | . . . Walls Destroyed . | . . . Machines Disabled . | . . . Actions | -11 -10 -10 --------- Run | Yrd Mat Sub Total 1259 | 105 973 181 Wait 17 | . 14 3 Move 1064 | 86 841 137 Hop . | . . . Pick Up 21 | 4 17 . Fast Attach 11 | 8 3 . Attach 6 | 2 1 3 Detach 4 | 4 . . Swap 7 | 1 6 . Drop 13 | . 13 . Fire 114 | . 76 38 Melee . | . . . Ram . | . . . Kick . | . . . Crush 2 | . 2 . Escape Stasis . | . . . Rewire . | . . . Trap . | . . . Miscellaneous . | . . . Route ------- -11/Scrapyard -10/Materials (discovered 6 exits: [*Mat x3] / [*Min x2] / [*Sub]) -10/Subcaves (discovered 1 exit: [*Rec]) History --------- Turn | Location | Event 3 | -11/Scrapyard | Discovered new exit (range 15) 147 | -11/Scrapyard | Entered Materials 313 | -10/Materials | Build established: Mutant 553 | -10/Materials | Discovered new exit (range 8) 647 | -10/Materials | Derelicts attacked the area 682 | -10/Materials | Discovered new exit (range 15) 995 | -10/Materials | Discovered new exit (range 14) 1000 | -10/Materials | Discovered new exit (range 15) 1064 | -10/Materials | Discovered new exit (range 7) 1093 | -10/Materials | Discovered new exit (range 16) 1767 | -10/Materials | Entered Subcaves 1782 | -10/Subcaves | A swath of the cavern ceiling suddenly collapsed 1873 | -10/Subcaves | Core integrity fell below 50% 1898 | -10/Subcaves | Discovered new exit (range 14) 1961 | -10/Subcaves | Lost 3 parts (1n1u1w) 2086 | -10/Subcaves | Core integrity fell below 20% 2104 | -10/Subcaves | Destroyed by P9-27E(R) with Subdweller Laser Last Messages --------------- 01902_ Lgt. Assault Rifle fries itself beyond repair. 01915_ Autobeam Turret destroyed. 01930_ Assault Rifle destroyed. 01940_ Autobeam Turret suffers critical hit (Destroy). 01940_ Destroyed Autobeam. 01940_ Autobeam Turret destroyed. 01961_ Acquired 29 matter. 01964_ Acquired 20 matter. 01982_ Acquired 28 matter. 02069_ Lgt. Treads destroyed. 02071_ GW-BB5(R) destroyed. 02071_ Switching to secondary target: P9-27E(R). 02073_ Lgt. Armor Plating destroyed. 02077_ P9-27E(R) affixes Scrap Shield Fragment to Scrap Shield. 02079_ Subatomizers dissect the Sub. Monowheel. 02091_ P9-27E(R) suffers critical hit (Destroy). 02093_ Subatomizers dissect the Sub. Monowheel. 02096_ System corrupted: Matter fused (-7). 02099_ P9-27E(R) affixes Scrap Shield Fragment to Scrap Shield. 02100_ Lgt. Treads destroyed. Map ----- +----------------------------------------------------+ | ????????????????????????????????????????? | | ????????????????????????????????????????? | | ????????????????????????????????????????? | | ???????????????????????? ?????????????? | | ??????????????????????? ?????????????? | | ??????????????????????? ??????????????? | | ???????????????##?????# ??????????????? | | ??????????????## ##??# ???????????????? | | ??????????????# ## ???????????????? | | ??????????????? ????????????????? | | ??????????????? #????????????????? | | ???????????????? #????????????????? | | ????????????????? ?????????????????? | | ?????????????????# ??????????????????? | | ???????????????### #??????????????????? | | ??????????????## #??????????????????? | | ??????????????# #??????????????????? | | ??????????????#### ####???????????????? | | ?????????????????# #???????????????? | | ?????????????????# ###?????????????? | | ????????????????## #?????????????? | | ??????????# ????# #?????????????? | | ???????????